bitfinex/quotes_ETHUSD_20240825
["timestamp","ask_amount","ask_price","bid_price","bid_amount"]
[1724595173762,2.2789,2772.6,2772.4,3.60697]
[1724595178259,2.2789,2772.6,2772.3,1.0]
[1724595179615,3.60695,2772.5,2772.3,1.0]
[1724595179839,7.65432776,2772.9,2772.3,1.0]
[1724595179840,9.49286,2772.4,2772.3,1.0]
[1724595180062,10.442146,2772.4,2772.3,1.0]
[1724595180569,13.992146,2772.4,2772.3,1.0]
[1724595181268,9.835166,2772.4,2772.3,1.0]
[1724595182620,2.2789,2772.3,2771.8,3.60773]
[1724595182820,2.2789,2772.3,2771.7,7.21558]
[1724595183217,2.2789,2772.3,2771.7,3.60778]
[1724595183442,3.6231236,2772.3,2771.7,3.60778]
[1724595185127,7.2303236,2772.3,2771.7,3.60778]
[1724595185767,0.0628434,2772.2,2771.7,3.60778]
[1724595190026,0.0628434,2772.2,2771.8,3.60774]
[1724595190230,0.0628434,2772.2,2771.7,4.60778]
[1724595192182,5.20907296,2772.2,2771.7,1.0]
[1724595193086,2.3716,2772.1,2771.7,1.0]
[1724595194439,2.3716,2772.1,2771.7,4.60787]
[1724595207177,4.26230578,2772.1,2771.7,1.0]
[1724595207356,5.91466,2771.8,2771.7,1.0]
[1724595207698,8.69712619,2771.8,2771.7,1.0]
[1724595207997,8.75997818,2771.8,2771.7,1.0]
[1724595208147,6.86897799,2771.8,2771.7,1.0]
[1724595208346,8.75990737,2771.8,2771.7,1.0]
[1724595208548,12.36731054,2771.8,2771.7,1.0]
[1724595210110,10.47673799,2771.8,2771.7,1.0]
[1724595211172,14.08449799,2771.8,2771.7,1.0]
[1724595211425,19.35369822,2771.8,2771.7,1.0]
[1724595212127,17.08449799,2771.8,2771.7,1.0]
[1724595212270,19.35214878,2771.8,2771.7,1.0]
[1724595212468,17.08449799,2771.8,2771.7,1.0]
[1724595213977,19.35214878,2771.8,2771.7,1.0]
[1724595214177,19.90214878,2771.8,2771.7,1.0]
[1724595216974,19.90055575,2771.8,2771.7,1.0]
[1724595219272,17.63449799,2771.8,2771.7,1.0]
[1724595219476,21.24225799,2771.8,2771.7,1.0]
[1724595220815,17.63449799,2771.8,2771.7,1.0]
[1724595221019,19.90016325,2771.8,2771.7,1.0]
[1724595222921,20.27747014,2771.8,2771.7,1.0]
[1724595223627,20.2776592,2771.8,2771.7,1.0]
[1724595224433,18.01180488,2771.8,2771.7,1.0]
[1724595225404,2.32869763,2771.8,2771.7,1.0]
[1724595225740,0.06285199,2771.8,2771.7,1.0]
[1724595230318,3.67061199,2771.8,2771.7,1.0]
[1724595231547,0.06285199,2771.8,2771.7,1.0]
[1724595232402,3.67061199,2771.8,2771.7,1.0]
[1724595240980,0.06285199,2771.8,2771.7,1.0]
[1724595241327,0.06285199,2771.8,2771.7,3.3062]
[1724595241528,0.06285199,2771.8,2771.7,3.63682]
[1724595245866,0.06285199,2771.8,2771.7,7.24471]
[1724595246540,11.06715,2772.3,2771.7,7.24471]
[1724595246863,0.06283439,2772.2,2771.7,7.24471]
[1724595247800,0.06283439,2772.2,2771.7,3.63682]
[1724595247991,0.06283439,2772.2,2771.8,0.724476]
[1724595248503,0.06283439,2772.2,2771.9,2.3491]
[1724595251181,0.06283439,2772.2,2772.0,3.60748]
[1724595251363,0.06283439,2772.2,2771.9,2.42124926]
[1724595252200,0.06283439,2772.2,2771.9,2.3491]
[1724595252511,0.06283439,2772.2,2771.9,3.1502836]
[1724595255793,0.06283439,2772.2,2771.9,6.7579036]
[1724595267144,0.06283439,2772.2,2772.1,7.21474]
[1724595267287,0.06283439,2772.2,2772.1,9.63784]
[1724595267635,10.0023035,2772.9,2772.4,3.60698]
[1724595267935,2.5423035,2772.9,2772.4,3.60698]
[1724595270435,6.1486735,2772.9,2772.3,3.60706]
[1724595273190,3.6065,2772.8,2772.2,3.60723]
[1724595274600,2.254,2772.7,2772.2,3.60723]
[1724595275829,2.254,2772.7,2772.3,3.6071]
[1724595278307,2.254,2772.7,2772.1,3.60727]
[1724595279049,2.254,2772.7,2772.2,3.60723]
[1724595282156,2.254,2772.7,2772.3,3.60711]
[1724595282616,2.254,2772.7,2772.3,4.328544]
[1724595283313,2.254,2772.7,2772.3,3.60711]
[1724595287956,0.06281704,2772.6,2772.3,3.60711]
[1724595291486,0.06281704,2772.6,2772.3,3.60711]
[1724595294810,0.06281704,2772.6,2772.4,3.60696]
[1724595295167,0.06281704,2772.6,2772.5,3.60685]
[1724595295510,0.06281704,2772.6,2772.5,7.2137]
[1724595296790,0.06281704,2772.6,2772.5,3.60685]
[1724595304334,0.06281704,2772.6,2772.3,7.21403]
[1724595304690,0.06281704,2772.6,2772.4,3.60694]
[1724595309532,0.06281704,2772.6,2772.3,7.21402]
[1724595309741,0.06281704,2772.6,2772.4,3.60697]
[1724595310240,1.95578802,2772.6,2772.4,3.60697]
[1724595310585,1.95578802,2772.6,2772.4,3.60698]
[1724595311576,1.95673439,2772.6,2772.4,3.60698]
[1724595316464,1.95769976,2772.6,2772.4,3.60698]
[1724595317815,1.89488272,2772.5,2772.4,3.60698]
[1724595318529,1.95769976,2772.6,2772.4,3.60698]
[1724595319270,1.95769976,2772.6,2772.5,2.4932]
[1724595319432,1.95769976,2772.6,2772.4,3.60689]
[1724595319830,1.95769976,2772.6,2772.4,7.2138]
[1724595320038,1.95769976,2772.6,2772.4,3.60689]
[1724595320573,1.95769976,2772.6,2772.4,7.21379]
[1724595321051,1.95769976,2772.6,2772.5,9.77903333]
[1724595321363,1.8946601,2772.8,2772.7,3.60659]
[1724595321592,0.1315035,2772.9,2772.6,3.60665]
[1724595321593,0.1315035,2772.9,2772.8,10.81938]
[1724595321717,0.1315035,2772.9,2772.8,23.24195353]
[1724595321916,0.1315035,2772.9,2772.8,20.92462518]
[1724595322436,0.1315035,2772.9,2772.8,20.17539959]
[1724595322642,0.1315035,2772.9,2772.8,13.02903353]
[1724595322857,0.1315035,2772.9,2772.8,11.148725]
[1724595323030,0.1315035,2772.9,2772.8,8.08155308]
[1724595323277,0.1315035,2772.9,2772.8,6.63894808]
[1724595323437,0.1315035,2772.9,2772.8,6.09966]
[1724595324416,0.1315035,2772.9,2772.8,9.70612]
[1724595326028,0.1315035,2772.9,2772.8,7.21292]
[1724595326230,0.1315035,2772.9,2772.8,3.60646]
[1724595326431,0.1315035,2772.9,2772.8,4.327767]
[1724595326859,0.1315035,2772.9,2772.6,3.60661]
[1724595327113,1.2604353,2772.7,2772.2,3.60712]
[1724595327452,1.2604353,2772.7,2772.3,3.60703]
[1724595327653,1.2604353,2772.7,2772.4,3.60698]
[1724595328549,1.2604353,2772.7,2772.2,3.60712]
[1724595328748,1.2604353,2772.7,2772.2,4.17348239]
[1724595329084,1.2604353,2772.7,2772.3,3.60703]
[1724595329256,1.3919388,2772.9,2772.5,3.60673]
[1724595330252,1.3919388,2772.9,2772.4,3.60693]
[1724595330758,1.3919388,2772.9,2772.4,7.21381]
[1724595332311,1.3919388,2772.9,2772.5,3.6068]
[1724595332810,0.1315035,2772.9,2772.6,3.60672]
[1724595332962,0.1315035,2772.9,2772.6,3.60664]
[1724595333165,0.1315035,2772.9,2772.8,3.60646]
[1724595333887,0.1315035,2772.9,2772.6,7.21324]
[1724595334125,0.1315035,2772.9,2772.6,8.2413508]
[1724595334609,0.1315035,2772.9,2772.7,3.60658]
[1724595335414,0.1315035,2772.9,2772.6,4.6347108]
[1724595335997,1.3919388,2772.9,2772.6,4.6347108]
[1724595336161,2.2924,2772.8,2772.6,3.6066]
[1724595336362,2.2924,2772.8,2772.4,3.60687]
[1724595336605,2.2924,2772.8,2772.2,2.91286239]
[1724595336606,1.2604353,2772.5,2772.2,7.78073239]
[1724595336798,1.2604353,2772.5,2772.3,3.60702]
[1724595336994,1.2604353,2772.7,2772.3,3.60702]
[1724595339233,1.2604353,2772.5,2772.0,7.21489]
[1724595339432,2.2924,2772.4,2772.1,4.328829]
[1724595339595,1.2604353,2772.5,2772.1,4.328829]
[1724595340195,1.2604353,2772.5,2772.2,3.60722]
[1724595340391,1.2604353,2772.5,2772.2,3.60716]
[1724595340590,1.89040673,2772.8,2772.3,3.60711]
[1724595340591,1.2604353,2772.7,2772.3,3.60711]
[1724595341690,1.2604353,2772.7,2772.3,4.60711]
[1724595342592,0.06278222,2772.6,2772.3,6.95353]
[1724595342920,0.06278222,2772.6,2772.5,3.60685]
[1724595343136,1.3919388,2772.9,2772.5,3.60685]
[1724595343296,0.1315035,2772.9,2772.7,3.60646]
[1724595346345,0.1315035,2772.9,2772.7,7.21296]
[1724595346661,0.1315035,2772.9,2772.8,3.60646]
[1724595347196,0.1315035,2772.9,2772.8,7.21292]
[1724595350988,0.1315035,2772.9,2772.6,7.21328]
[1724595351278,0.1315035,2772.9,2772.7,3.60658]
[1724595351435,2.4100035,2772.9,2772.5,3.60675]
[1724595351628,2.4100035,2772.9,2772.5,3.60676]
[1724595352174,0.1315035,2772.9,2772.7,3.60655]
[1724595352932,0.1315035,2772.9,2772.7,4.21238552]
[1724595353130,0.1315035,2772.9,2772.8,3.60646]
[1724595353351,0.1315035,2772.9,2772.8,7.28504055]
[1724595353633,0.1315035,2772.9,2772.8,7.21292]
[1724595362485,0.1315035,2772.9,2772.8,9.62012]
[1724595362671,0.1315035,2772.9,2772.8,11.00338355]
[1724595371269,0.1315035,2772.9,2772.8,8.59618355]
[1724595372107,0.1315035,2772.9,2772.8,13.46241643]
[1724595372270,0.1315035,2772.9,2772.8,15.85671643]
[1724595374404,0.1315035,2772.9,2772.8,18.85671643]
[1724595374701,0.1315035,2772.9,2772.8,22.46317643]
[1724595374905,3.5e-06,2772.9,2772.8,42.94860138]
[1724595375058,3.5e-06,2772.9,2772.8,46.40289264]
[1724595375257,3.5e-06,2772.9,2772.8,51.27818394]
[1724595375454,2.33016747,2774.9,2773.6,2.3943]
[1724595375455,0.06274084,2774.9,2773.6,2.3943]
[1724595375665,2.278,2775.1,2774.8,3.60386]
[1724595376118,2.278,2775.1,2774.6,3.60401]
[1724595376301,2.278,2775.1,2774.9,3.6036]
[1724595376838,0.06274771,2775.2,2775.1,3.60347]
[1724595377030,0.1315035,2775.7,2775.6,3.60282]
[1724595377179,0.1315035,2775.7,2775.6,7.20564]
[1724595377522,2.64533107,2776.9,2775.6,7.20564]
[1724595377523,1.25977288,2777.1,2776.7,3.60129]
[1724595377670,0.16416683,2777.5,2776.5,3.60154]
[1724595377671,1.25977288,2776.9,2776.5,3.60154]
[1724595377868,3.60152,2776.6,2775.8,3.60256]
[1724595378074,0.48612929,2776.5,2775.3,5.3943]
[1724595378371,3.6014,2776.7,2775.8,3.60254]
[1724595378624,3.60168,2776.5,2775.7,3.60266]
[1724595378771,5.87979,2776.4,2775.5,3.60294]
[1724595378972,2.278,2776.4,2775.9,3.60241]
[1724595379177,2.278,2776.4,2775.3,3.0]
[1724595379178,2.278,2776.4,2775.7,3.60259]
[1724595379372,2.865953,2776.4,2775.7,3.60259]
[1724595379986,0.587953,2776.4,2775.4,3.0]
[1724595380209,3.6022,2776.1,2775.3,3.60321]
[1724595380372,3.6022,2776.1,2774.7,3.60394]
[1724595380373,2.278,2776.0,2774.7,3.60394]
[1724595380571,3.60221,2776.1,2775.1,3.60336]
[1724595380876,3.60221,2776.1,2775.3,3.6032]
[1724595380877,0.360221,2776.0,2775.3,3.6032]
[1724595381107,3.962521,2776.0,2775.3,3.6032]
[1724595381704,0.360221,2776.0,2775.2,3.60322]
[1724595381885,0.360221,2776.0,2775.4,3.60305]
[1724595382230,3.60205,2776.2,2775.2,3.60331]
[1724595382388,3.6022,2776.1,2775.2,3.60331]
[1724595382790,3.60269,2775.8,2775.0,3.60357]
[1724595382990,3.60269,2775.8,2774.9,3.60363]
[1724595383302,6.61921608,2776.0,2775.2,3.6033]
[1724595383501,1.02214561,2775.9,2775.2,3.6033]
[1724595383728,3.60306,2775.5,2774.7,3.60388]
[1724595383927,2.3266,2775.6,2775.0,3.60355]
[1724595384076,2.3266,2775.6,2774.4,3.60436]
[1724595384077,3.60258,2775.8,2775.1,3.60346]
[1724595384276,3.60283,2775.6,2774.9,3.60369]
[1724595384504,0.360283,2775.5,2774.9,3.60369]
[1724595385478,0.360283,2775.5,2774.0,3.6048]
[1724595385479,3.60321,2775.3,2774.0,3.6048]
[1724595385678,3.60336,2775.2,2774.5,3.60415]
[1724595385878,3.60336,2775.2,2774.2,3.0]
[1724595385879,3.60361,2775.0,2774.2,3.6046]
[1724595386140,3.60393,2774.8,2774.0,3.60479]
[1724595386329,3.60401,2774.7,2774.0,3.60479]
[1724595386478,3.60399,2774.7,2773.9,3.60502]
[1724595386677,3.60399,2774.7,2773.7,0.61963]
[1724595386678,3.60438,2774.4,2773.7,4.22483]
[1724595386986,3.60438,2774.4,2773.8,3.6051]
[1724595387339,3.01689608,2774.8,2773.8,3.6051]
[1724595387340,3.6042,2774.6,2773.9,3.60501]
[1724595388045,3.6042,2774.6,2774.0,3.60489]
[1724595388241,6.62078608,2774.8,2773.8,3.6051]
[1724595388242,3.60425,2774.5,2773.8,3.6051]
[1724595388451,3.60407,2774.7,2773.9,3.60501]
[1724595389633,3.60412,2774.6,2773.9,3.60501]
[1724595389831,3.60389,2774.8,2773.8,0.78301]
[1724595390045,3.60389,2774.8,2774.0,3.60478]
[1724595390203,3.60389,2774.8,2774.2,3.60463]
[1724595390405,3.60389,2774.8,2774.1,3.60472]
[1724595390737,3.60389,2774.8,2774.2,3.60463]
[1724595390913,11.94692608,2775.2,2774.3,0.0720882]
[1724595391116,2.3266,2775.2,2774.6,3.60399]
[1724595391316,3.60322,2775.3,2774.6,3.60399]
[1724595391626,3.60308,2775.4,2774.6,3.60399]
[1724595391627,7.20629,2775.4,2774.6,3.60399]
[1724595391826,4.85805861,2775.4,2774.7,3.60397]
[1724595392258,8.46126861,2775.4,2774.7,3.60397]
[1724595392462,4.85805861,2775.4,2774.8,3.60383]
[1724595392820,1.25497861,2775.4,2774.9,3.60372]
[1724595393016,3.01689608,2775.5,2774.9,3.60372]
[1724595393355,5.92945,2775.6,2775.1,3.60345]
[1724595393356,2.3266,2775.6,2775.1,3.60345]
[1724595393557,3.01689608,2775.5,2774.8,3.6038]
[1724595393716,3.6032,2775.4,2774.6,3.60403]
[1724595393915,3.6033,2775.3,2774.6,3.60403]
[1724595394225,3.01689608,2775.5,2774.8,3.60386]
[1724595394425,6.61986608,2775.5,2774.8,3.60386]
[1724595394627,3.60314,2775.4,2774.7,3.60398]
[1724595394841,3.60329,2775.3,2774.6,4.324855]
[1724595395244,8.94636608,2775.6,2774.9,3.6036]
[1724595395424,10.23895124,2775.6,2774.8,3.60374]
[1724595395630,3.6031,2775.4,2774.8,3.60374]
[1724595396256,3.6031,2775.4,2774.6,3.60409]
[1724595397057,3.6031,2775.4,2774.7,3.60398]
[1724595397463,3.60324,2775.3,2774.6,3.60409]
[1724595397667,3.60324,2775.3,2774.6,4.324932]
[1724595398019,3.60337,2775.2,2774.6,0.720842]
[1724595398224,3.01689608,2774.8,2774.0,3.60478]
[1724595398439,3.01689608,2774.8,2773.8,3.60504]
[1724595398440,3.60417,2774.6,2773.8,3.60504]
[1724595398668,3.60417,2774.6,2773.8,4.326083]
[1724595398669,3.01689608,2774.5,2773.8,4.326083]
[1724595399328,2.3514,2774.4,2773.8,4.326083]
[1724595399985,5.95579,2774.4,2773.8,4.326083]
[1724595400329,3.01689608,2774.5,2774.0,3.60479]
[1724595400651,6.62126608,2774.5,2774.0,0.4325833]
[1724595400858,6.62126608,2774.5,2773.8,3.60503]
[1724595401188,2.3514,2774.8,2773.6,3.60533]
[1724595401189,3.01689608,2774.2,2773.6,3.60533]
[1724595401675,3.01689608,2774.2,2773.8,3.60505]
[1724595401848,11.06439,2774.4,2773.8,3.60505]
[1724595403047,3.60452,2774.3,2773.6,3.60536]
[1724595403246,8.91395608,2774.2,2773.4,3.60567]
[1724595404240,3.60516,2773.8,2773.0,3.60615]
[1724595404448,5.89803,2773.5,2772.8,4.98964355]
[1724595404675,3.60583,2773.3,2772.8,1.38326355]
[1724595404892,6.62272608,2773.3,2772.7,3.60658]
[1724595405181,3.01689608,2773.3,2772.7,3.6065]
[1724595405332,3.01689608,2773.3,2772.8,0.36065]
[1724595405532,3.01689608,2773.3,2772.7,3.6065]
[1724595405533,6.62278608,2773.3,2772.7,3.6065]
[1724595405738,3.60595,2773.2,2772.7,3.6065]
[1724595406153,3.01689608,2773.0,2772.5,7.6068]
[1724595406354,3.01689608,2773.0,2772.5,4.0]
[1724595406355,2.2924,2772.9,2772.5,4.0]
[1724595407283,5.89874,2772.9,2772.5,4.0]
[1724595407576,3.01689608,2772.7,2772.5,4.0]
[1724595407779,2.2924,2772.9,2772.7,3.6065]
[1724595407977,2.2924,2772.9,2772.5,8.367517]
[1724595408954,2.2924,2772.9,2772.5,4.760707]
[1724595409155,2.2924,2772.9,2772.5,4.0]
[1724595409845,0.3771213,2773.2,2772.7,3.60649]
[1724595410044,3.60607,2773.1,2772.5,7.6068]
[1724595410381,0.3771213,2773.2,2772.6,3.60672]
[1724595410591,3.9830913,2773.2,2772.6,4.728072]
[1724595410775,3.9830913,2773.2,2772.6,3.60672]
[1724595410976,0.3771213,2773.2,2772.7,3.60658]
[1724595411203,0.3771213,2773.2,2772.9,3.60631]
[1724595411617,2.2924,2773.3,2772.9,3.60631]
[1724595412195,2.2924,2773.3,2772.8,3.60636]
[1724595412399,2.2924,2773.3,2772.8,4.327664]
[1724595412545,2.2924,2773.3,2772.6,3.60668]
[1724595412747,5.89831,2773.3,2772.6,3.60668]
[1724595413304,3.60612,2773.1,2772.5,4.0]
[1724595413503,3.60612,2773.1,2772.5,7.60685]
[1724595414490,3.60621,2773.0,2772.5,4.0]
[1724595415312,3.60612,2773.1,2772.5,4.0]
[1724595415513,3.60612,2773.1,2772.5,7.60684]
[1724595415660,3.60612,2773.1,2772.5,4.0]
[1724595415866,4.556555,2773.1,2772.5,4.0]
[1724595416263,3.60642,2772.9,2772.5,4.0]
[1724595416457,2.2924,2773.0,2772.5,4.0]
[1724595416662,2.2924,2773.0,2772.5,3.911]
[1724595416904,5.89864,2773.0,2772.5,3.911]
[1724595418006,2.2924,2773.0,2772.5,3.911]
[1724595418212,5.89866,2773.0,2772.5,3.911]
[1724595418413,6.849135,2773.0,2772.5,3.911]
[1724595418761,3.60635,2772.9,2772.5,3.911]
[1724595419462,3.242875,2773.0,2772.5,3.911]
[1724595419993,6.849075,2773.0,2772.5,3.911]
[1724595420205,7.46,2773.3,2773.0,3.60611]
[1724595420518,7.46,2773.3,2772.8,3.60635]
[1724595421584,13.35823,2773.3,2772.7,3.60652]
[1724595421778,13.35823,2773.3,2772.5,7.51779]
[1724595421779,3.60602,2773.2,2772.5,7.51776]
[1724595421981,3.60626,2773.0,2772.5,3.911]
[1724595422631,11.448795,2773.3,2772.7,3.60648]
[1724595423132,3.60594,2773.2,2772.6,3.60669]
[1724595423292,3.60594,2773.2,2772.7,3.60655]
[1724595423293,4.42206377,2773.2,2772.7,3.60655]
[1724595423496,3.6061,2773.1,2772.5,7.51774]
[1724595424084,3.60623,2773.0,2772.5,7.51774]
[1724595424288,3.60623,2773.0,2772.5,3.911]
[1724595425228,7.21254,2773.0,2772.5,3.911]
[1724595425395,4.40909638,2773.0,2772.5,3.911]
[1724595425597,5.87808,2772.9,2772.5,3.911]
[1724595426022,3.60654,2772.8,2772.5,3.911]
[1724595427295,3.60672,2772.6,2772.5,3.911]
[1724595428823,5.87833,2772.7,2772.5,3.911]
[1724595428979,6.5248786,2772.7,2772.5,3.911]
[1724595429177,2.9182486,2772.7,2772.5,3.911]
[1724595429492,8.44094312,2773.0,2772.5,7.51781]
[1724595429493,0.80286638,2773.0,2772.5,7.51781]
[1724595429695,0.80286638,2773.0,2772.5,3.911]
[1724595429696,4.40913638,2773.0,2772.5,3.911]
[1724595429910,8.01544638,2773.0,2772.5,3.911]
[1724595430217,8.01542638,2773.0,2772.5,3.911]
[1724595430378,4.40913638,2773.0,2772.5,3.911]
[1724595430725,0.66808364,2772.9,2772.5,3.911]
[1724595431025,3.60653,2772.8,2772.5,3.911]
[1724595431984,6.63211054,2772.8,2772.5,3.911]
[1724595432295,2.2717,2772.7,2772.5,3.911]
[1724595433231,3.60672,2772.6,2772.5,3.911]
[1724595433398,4.85779105,2772.6,2772.5,3.911]
[1724595434722,8.46451105,2772.6,2772.5,3.911]
[1724595435847,3.60625,2773.0,2772.5,3.911]
[1724595435848,2.2717,2773.0,2772.5,3.911]
[1724595436047,6.2550971,2773.0,2772.5,3.911]
[1724595436208,3.02558054,2772.8,2772.5,3.911]
[1724595437510,6.63204054,2772.8,2772.5,3.911]
[1724595438464,11.5273043,2772.8,2772.5,3.911]
[1724595438967,3.60672,2772.6,2772.5,3.911]
[1724595440121,9.48514,2772.6,2772.5,3.911]
[1724595440931,5.87842,2772.6,2772.5,3.911]
[1724595441107,3.60672,2772.6,2772.5,3.911]
[1724595441312,7.9208043,2772.8,2772.5,3.911]
[1724595441725,4.62592043,2772.7,2772.5,3.911]
[1724595442344,3.60672,2772.6,2772.5,3.911]
[1724595443740,4.62596043,2772.7,2772.5,3.911]
[1724595443940,0.3771671,2773.0,2772.5,3.911]
[1724595445063,3.60641,2772.9,2772.5,3.911]
[1724595446653,0.3771671,2773.0,2772.5,3.911]
[1724595446854,0.3771671,2773.0,2772.7,3.60649]
[1724595447094,3.02558054,2773.1,2772.7,3.60649]
[1724595447626,3.02558054,2773.1,2772.5,11.12455]
[1724595447834,3.02558054,2773.1,2772.6,3.6066]
[1724595448424,3.02558054,2773.1,2772.7,3.911]
[1724595448937,3.02558054,2773.1,2772.7,7.51758]
[1724595449355,3.02558054,2773.1,2772.7,3.911]
[1724595451212,6.63167054,2773.1,2772.7,3.911]
[1724595452756,4.79533259,2773.1,2772.7,3.911]
[1724595453103,10.23850054,2772.8,2772.7,3.911]
[1724595456021,14.39496054,2772.8,2772.7,3.911]
[1724595456172,22.1291145,2772.8,2772.7,3.911]
[1724595457001,22.1291145,2772.8,2772.7,3.20515389]
[1724595457205,22.05174224,2772.8,2772.7,3.20515389]
[1724595459188,24.69908491,2772.8,2772.7,3.20515389]
[1724595459579,22.05174224,2772.8,2772.7,3.20515389]
[1724595460104,24.69908491,2772.8,2772.7,3.20515389]
[1724595460512,22.05174224,2772.8,2772.7,3.20515389]
[1724595461002,25.65820224,2772.8,2772.7,2.67e-06]
[1724595461205,28.78537577,2772.8,2772.7,2.67e-06]
[1724595462002,25.65820224,2772.8,2772.7,2.67e-06]
[1724595462579,26.03534874,2772.8,2772.7,2.67e-06]
[1724595463664,22.0471705,2772.8,2772.7,2.67e-06]
[1724595463867,22.42888874,2772.8,2772.7,2.67e-06]
[1724595464268,24.6947571,2772.8,2772.7,2.67e-06]
[1724595465017,21.87888874,2772.8,2772.7,2.67e-06]
[1724595465178,24.1447571,2772.8,2772.7,2.67e-06]
[1724595465382,21.87888874,2772.8,2772.7,2.67e-06]
[1724595466167,24.69441108,2772.8,2772.7,2.67e-06]
[1724595469068,22.42888874,2772.8,2772.7,2.67e-06]
[1724595469468,26.03534874,2772.8,2772.7,2.67e-06]
[1724595469897,28.67918813,2772.8,2772.7,2.67e-06]
[1724595470139,32.28564813,2772.8,2772.7,2.67e-06]
[1724595470296,29.64180874,2772.8,2772.7,2.67e-06]
[1724595471856,32.76484403,2772.8,2772.7,2.67e-06]
[1724595472343,29.64180874,2772.8,2772.7,2.67e-06]
[1724595472553,32.76317152,2772.8,2772.7,2.67e-06]
[1724595472756,29.64180874,2772.8,2772.7,2.67e-06]
[1724595473048,52.42888928,2772.8,2772.7,2.67e-06]
[1724595473260,52.80383442,2772.8,2772.7,2.67e-06]
[1724595473492,49.77825388,2772.8,2772.7,2.67e-06]
[1724595473829,52.80383442,2772.8,2772.7,2.67e-06]
[1724595475461,55.92262133,2772.8,2772.7,2.67e-06]
[1724595475996,49.77825388,2772.8,2772.7,2.67e-06]
[1724595476473,52.80383442,2772.8,2772.7,2.67e-06]
[1724595476681,55.92200387,2772.8,2772.7,2.67e-06]
[1724595476970,52.89642333,2772.8,2772.7,2.67e-06]
[1724595477343,29.82825388,2772.8,2772.7,2.67e-06]
[1724595477548,32.09246712,2772.8,2772.7,2.67e-06]
[1724595477929,29.45330874,2772.8,2772.7,2.67e-06]
[1724595478764,32.09216098,2772.8,2772.7,2.67e-06]
[1724595478936,32.64216098,2772.8,2772.7,2.67e-06]
[1724595479923,30.00330874,2772.8,2772.7,2.67e-06]
[1724595482231,33.02888928,2772.8,2772.7,2.67e-06]
[1724595482500,52.42888928,2772.8,2772.7,2.67e-06]
[1724595482777,49.40330874,2772.8,2772.7,2.67e-06]
[1724595483477,49.77767721,2772.8,2772.7,2.67e-06]
[1724595484530,52.41544111,2772.8,2772.7,2.67e-06]
[1724595484820,52.04107264,2772.8,2772.7,2.67e-06]
[1724595484931,49.40330874,2772.8,2772.7,2.67e-06]
[1724595485468,52.04106369,2772.8,2772.7,2.67e-06]
[1724595485889,52.04105125,2772.8,2772.7,2.67e-06]
[1724595486047,49.40330874,2772.8,2772.7,2.67e-06]
[1724595486256,52.04102939,2772.8,2772.7,2.67e-06]
[1724595486578,49.40330874,2772.8,2772.7,2.67e-06]
[1724595489375,52.42888928,2772.8,2772.7,2.67e-06]
[1724595489582,55.91879986,2772.8,2772.7,2.67e-06]
[1724595489781,55.91880286,2772.8,2772.7,2.67e-06]
[1724595489930,52.80299234,2772.8,2772.7,2.67e-06]
[1724595490682,52.80299234,2772.8,2771.2,1.90750688]
[1724595490683,10.82523,2771.3,2771.2,1.90750688]
[1724595490877,10.82523,2771.3,2769.8,3.61028]
[1724595490878,3.60966,2770.4,2769.8,3.61028]
[1724595491063,3.60955,2770.5,2769.9,3.61018]
[1724595491265,3.60955,2770.5,2769.8,3.61028]
[1724595491266,0.37727171,2770.8,2769.8,3.61025]
[1724595491442,3.60957,2770.5,2769.8,3.61025]
[1724595491639,3.60926,2770.7,2770.0,3.61005]
[1724595491977,7.01191225,2770.8,2770.2,3.60974]
[1724595492410,3.40285225,2770.8,2770.2,3.60974]
[1724595492779,0.37727171,2770.8,2770.5,3.60938]
[1724595492997,3.60881,2771.0,2770.2,3.60977]
[1724595493209,3.60881,2771.0,2770.4,3.60955]
[1724595493432,3.60881,2771.0,2769.6,0.39800568]
[1724595493433,3.60992,2770.2,2769.5,3.92533332]
[1724595493718,6.63550054,2770.2,2769.5,3.61067]
[1724595493881,6.63550054,2770.2,2769.6,2.2844]
[1724595494084,6.63550054,2770.2,2769.8,2.2844]
[1724595494283,10.24546054,2770.2,2769.8,2.2844]
[1724595494469,6.63550054,2770.2,2769.8,2.2844]
[1724595494675,3.61006,2770.1,2769.8,2.2844]
[1724595495398,3.61011,2770.0,2769.8,2.2844]
[1724595496229,3.02558054,2769.9,2769.8,2.2844]
[1724595496727,6.63581054,2769.9,2769.8,2.2844]
[1724595502093,3.02558054,2769.9,2769.8,2.2844]
[1724595502586,6.63581054,2769.9,2769.8,2.2844]
[1724595503996,6.63548054,2770.2,2769.8,2.2844]
[1724595504733,3.02558054,2770.2,2769.8,2.2844]
[1724595504931,11.06965,2770.4,2769.9,5.96952]
[1724595505235,11.06965,2770.4,2769.9,2.3593]
[1724595505758,7.46,2770.4,2769.9,2.3593]
[1724595506061,7.46,2770.4,2770.1,2.3593]
[1724595506246,3.60937,2770.6,2770.1,2.3593]
[1724595506750,3.60948,2770.5,2770.1,2.3593]
[1724595507242,3.60963,2770.4,2770.1,2.3593]
[1724595508569,3.60972,2770.3,2770.1,2.3593]
[1724595509229,3.60984,2770.2,2770.1,2.3593]
[1724595509607,6.63542054,2770.2,2770.1,2.3593]
[1724595509805,3.02558054,2770.2,2770.1,2.3593]
[1724595510909,6.63542054,2770.2,2770.1,2.3593]
[1724595513112,3.60963,2770.4,2770.1,2.3593]
[1724595513317,3.02558054,2770.5,2770.1,2.3593]
[1724595514914,6.63503054,2770.5,2770.1,2.3593]
[1724595516345,3.60961,2770.4,2770.1,2.3593]
[1724595518734,3.60979,2770.3,2770.1,2.3593]
[1724595518939,3.60984,2770.2,2770.1,2.3593]
[1724595520897,3.6097,2770.4,2770.1,2.3593]
[1724595521234,6.63510054,2770.5,2770.1,2.3593]
[1724595521985,10.24464054,2770.5,2770.1,2.3593]
[1724595522281,6.63510054,2770.5,2770.1,2.3593]
[1724595522836,10.24465054,2770.5,2770.1,2.3593]
[1724595523356,3.60963,2770.4,2770.1,2.3593]